bitfinex-derivatives/quotes_BTCF0:USTF0_20210705
["timestamp","ask_amount","ask_price","bid_price","bid_amount"]
[1625518401808,0.8695741,33819.0,33814.0,1.19505097]
[1625518402257,0.8695741,33819.0,33818.0,0.48115088]
[1625518402362,0.34781919,33824.0,33818.0,1.9244943]
[1625518402459,0.34781919,33824.0,33818.0,2.0404943]
[1625518402909,0.34781919,33824.0,33819.0,0.33872057]
[1625518402910,0.34790252,33823.0,33819.0,0.33872057]
[1625518403009,0.34790252,33823.0,33820.0,0.2]
[1625518403110,0.34790252,33823.0,33820.0,0.51518]
[1625518403209,0.34790252,33823.0,33820.0,0.63318]
[1625518403410,1.21739803,33824.0,33820.0,0.63318]
[1625518403411,0.8693659,33824.0,33820.0,0.63318]
[1625518403513,0.34759905,33824.0,33820.0,0.63318]
[1625518404212,0.86891487,33824.0,33820.0,0.63318]
[1625518404313,0.86891487,33824.0,33823.0,0.24057544]
[1625518404414,0.86891487,33824.0,33823.0,0.55857544]
[1625518404615,0.58797808,33825.0,33823.0,0.49957544]
[1625518404812,0.58797808,33825.0,33823.0,0.55857544]
[1625518404914,0.58797808,33825.0,33823.0,0.49957544]
[1625518405014,0.58797808,33825.0,33823.0,0.55857544]
[1625518406463,0.58797808,33825.0,33823.0,0.49957544]
[1625518406563,0.58797808,33825.0,33823.0,0.55857544]
[1625518406864,0.24057544,33825.0,33823.0,0.55857544]
[1625518407264,0.58785509,33825.0,33823.0,0.55857544]
[1625518407666,0.24057544,33825.0,33823.0,0.49957544]
[1625518407764,0.24057544,33825.0,33823.0,0.55857544]
[1625518407864,0.24057544,33825.0,33823.0,0.49957544]
[1625518407964,0.24057544,33825.0,33823.0,0.55857544]
[1625518408178,0.58783354,33825.0,33823.0,0.55857544]
[1625518408570,0.24057544,33825.0,33823.0,0.55857544]
[1625518409016,4.6267,33824.0,33823.0,0.55857544]
[1625518409116,4.6267,33824.0,33823.0,0.49957544]
[1625518409819,4.6267,33824.0,33823.0,0.29957544]
[1625518410919,0.58776789,33825.0,33823.0,0.29957544]
[1625518411023,0.24057544,33825.0,33823.0,0.29957544]
[1625518412675,0.24057544,33825.0,33823.0,0.35857544]
[1625518413425,0.24057544,33825.0,33823.0,0.29957544]
[1625518413525,0.24057544,33825.0,33823.0,0.35857544]
[1625518413627,0.24057544,33825.0,33823.0,0.29957544]
[1625518413728,0.24057544,33825.0,33823.0,0.35857544]
[1625518413827,0.24057544,33825.0,33823.0,0.29957544]
[1625518413928,0.24057544,33825.0,33823.0,0.35857544]
[1625518414180,0.24057544,33825.0,33823.0,0.29957544]
[1625518414278,0.24057544,33825.0,33823.0,0.35857544]
[1625518414478,0.86744208,33828.0,33823.0,0.35857544]
[1625518414579,0.86744208,33828.0,33824.0,0.057]
[1625518414678,0.86744208,33828.0,33824.0,0.116]
[1625518414778,0.86744208,33828.0,33824.0,0.175]
[1625518414880,0.69384419,33829.0,33824.0,0.175]
[1625518414881,0.34692602,33829.0,33824.0,0.175]
[1625518414980,0.34692602,33829.0,33824.0,0.116]
[1625518415083,0.34692602,33829.0,33824.0,0.175]
[1625518415680,0.34692602,33829.0,33824.0,0.116]
[1625518415881,0.34692602,33829.0,33824.0,0.316]
[1625518416080,0.34692602,33829.0,33824.0,0.375]
[1625518416333,0.34692602,33829.0,33828.0,0.48115088]
[1625518416430,0.34692602,33829.0,33828.0,0.54015088]
[1625518416532,1.10776175,33830.0,33828.0,0.54015088]
[1625518417435,0.34688453,33829.0,33828.0,0.54015088]
[1625518420340,1.10775948,33830.0,33828.0,0.54015088]
[1625518421144,0.34692872,33829.0,33828.0,0.54015088]
[1625518421696,0.34692872,33829.0,33828.0,0.59915088]
[1625518421795,0.34692872,33829.0,33828.0,0.54015088]
[1625518421996,0.34692872,33829.0,33828.0,0.59915088]
[1625518422101,0.34692872,33829.0,33828.0,0.54015088]
[1625518423050,1.10782699,33830.0,33828.0,0.54015088]
[1625518423602,0.3469514,33829.0,33828.0,0.54015088]
[1625518425407,0.36364559,33829.0,33828.0,0.54015088]
[1625518425780,0.42264559,33829.0,33828.0,0.54015088]
[1625518425886,0.42264559,33829.0,33828.0,0.48115088]
[1625518426460,0.42264559,33829.0,33828.0,0.24057544]
[1625518426660,3.54557952,33829.0,33828.0,0.24057544]
[1625518426860,3.48657952,33829.0,33828.0,0.24057544]
[1625518426959,3.48657952,33829.0,33828.0,0.29957544]
[1625518427060,3.54557952,33829.0,33828.0,0.29957544]
[1625518429015,3.54557952,33829.0,33823.0,0.24057544]
[1625518429117,3.58061873,33829.0,33823.0,0.24057544]
[1625518429415,0.0517349,33828.0,33823.0,0.24057544]
[1625518429514,0.0517349,33828.0,33825.0,4.0048]
[1625518429614,0.1107349,33828.0,33825.0,4.0048]
[1625518429714,0.07569671,33828.0,33825.0,4.0048]
[1625518429915,1.23171479,33827.0,33825.0,4.0048]
[1625518430116,1.29071479,33827.0,33825.0,4.0048]
[1625518430215,0.01669716,33826.0,33825.0,4.0048]
[1625518430317,0.07569716,33826.0,33825.0,4.0048]
[1625518430515,0.2572726,33826.0,33825.0,4.0048]
[1625518430616,3.72991235,33826.0,33825.0,4.0048]
[1625518430967,2.51455788,33826.0,33825.0,4.0048]
[1625518431267,2.51455788,33826.0,33825.0,0.059]
[1625518431367,2.57355788,33826.0,33825.0,0.059]
[1625518431566,2.60859518,33826.0,33825.0,0.059]
[1625518431771,2.57355788,33826.0,33825.0,0.059]
[1625518431869,6.45375788,33826.0,33825.0,0.059]
[1625518431972,7.66926324,33826.0,33825.0,0.059]
[1625518434325,9.05899589,33826.0,33825.0,0.059]
[1625518435126,5.17879589,33826.0,33825.0,0.059]
[1625518435326,5.11979589,33826.0,33825.0,0.37627]
[1625518436136,2.51455788,33826.0,33825.0,0.37627]
[1625518436239,2.51455788,33826.0,33825.0,0.31727]
[1625518436337,2.51455788,33826.0,33825.0,0.37627]
[1625518440095,2.57355788,33826.0,33825.0,0.31727]
[1625518440197,2.57355788,33826.0,33823.0,0.24057544]
[1625518440497,0.01670806,33825.0,33823.0,0.29957544]
[1625518440698,0.07570806,33825.0,33823.0,0.29957544]
[1625518440798,3.72023206,33824.0,33823.0,0.29957544]
[1625518440896,3.77923206,33824.0,33823.0,0.29957544]
[1625518441097,3.79594058,33824.0,33823.0,0.29957544]
[1625518441399,5.18776219,33824.0,33823.0,0.29957544]
[1625518443203,5.12876219,33824.0,33823.0,0.29957544]
[1625518443803,3.73694058,33824.0,33823.0,0.29957544]
[1625518444155,2.51913034,33824.0,33823.0,0.29957544]
[1625518444905,0.25728396,33824.0,33823.0,0.29957544]
[1625518445506,2.52176082,33824.0,33823.0,0.29957544]
[1625518446006,3.7409947,33824.0,33823.0,0.29957544]
[1625518446108,3.7409947,33824.0,33823.0,0.58298544]
[1625518448208,3.7999947,33824.0,33823.0,0.58298544]
[1625518448309,3.7409947,33824.0,33823.0,0.58298544]
[1625518448963,3.7999947,33824.0,33823.0,0.58298544]
[1625518449262,5.19471049,33824.0,33823.0,0.58298544]
[1625518450368,5.13571049,33824.0,33823.0,0.58298544]
[1625518450466,5.19471049,33824.0,33823.0,0.58298544]
[1625518454173,5.19471049,33824.0,33823.0,0.67098544]
[1625518454674,5.19471049,33824.0,33823.0,0.58298544]
[1625518454777,5.19471049,33824.0,33823.0,0.92937676]
[1625518455125,5.19471049,33824.0,33823.0,1.44968843]
[1625518455525,5.19471049,33824.0,33823.0,1.10329711]
[1625518456477,5.19471049,33824.0,33823.0,1.79729474]
[1625518457588,9.25041049,33824.0,33823.0,1.79729474]
[1625518457680,9.57517049,33824.0,33823.0,1.5567193]
[1625518457786,9.57517049,33824.0,33823.0,1.2143093]
[1625518458034,9.61021068,33824.0,33823.0,1.2143093]
[1625518458133,11.18296832,33824.0,33823.0,0.86756487]
[1625518458534,11.18296832,33824.0,33821.0,0.5211604]
[1625518458735,11.18296832,33824.0,33821.0,0.5801604]
[1625518458833,0.0517415,33823.0,33821.0,0.5801604]
[1625518458935,6.46863948,33822.0,33821.0,0.927529]
[1625518459034,6.76821492,33822.0,33821.0,0.927529]
[1625518459385,6.78491614,33822.0,33821.0,0.927529]
[1625518459535,6.78491614,33822.0,33821.0,0.58002529]
[1625518460436,6.78491614,33822.0,33821.0,0.92746359]
[1625518460886,6.78491614,33822.0,33821.0,0.58012074]
[1625518461639,6.81995857,33822.0,33821.0,0.58012074]
[1625518461739,6.81995857,33822.0,33821.0,0.059]
[1625518461939,6.81995857,33822.0,33820.0,0.17384224]
[1625518462139,0.01670289,33821.0,33820.0,0.17384224]
[1625518462240,0.07570289,33821.0,33820.0,0.17384224]
[1625518462692,6.54544095,33821.0,33820.0,0.17384224]
[1625518463093,6.78601639,33821.0,33820.0,0.17384224]
[1625518463693,6.78601639,33821.0,33819.0,0.52161463]
[1625518463793,6.78601639,33821.0,33819.0,0.58061463]
[1625518464008,0.01670259,33820.0,33819.0,0.58061463]
[1625518464143,0.07570259,33820.0,33819.0,0.58061463]
[1625518464244,6.5435774,33820.0,33819.0,0.58061463]
[1625518464699,6.5435774,33820.0,33819.0,1.27482895]
[1625518465152,4.97039086,33820.0,33819.0,1.27482895]
[1625518465852,6.54335254,33820.0,33819.0,0.58006955]
[1625518467253,4.97039086,33820.0,33819.0,0.58006955]
[1625518469157,4.97039086,33820.0,33819.0,1.27169161]
[1625518469558,5.45154174,33820.0,33819.0,1.27169161]
[1625518470713,5.39254174,33820.0,33819.0,0.58006955]
[1625518470911,5.45154174,33820.0,33819.0,0.58006955]
[1625518471210,5.39254174,33820.0,33819.0,0.58006955]
[1625518473612,5.45154174,33820.0,33819.0,0.8661968]
[1625518473963,5.45154174,33820.0,33819.0,0.51792609]
[1625518474866,7.02412625,33820.0,33819.0,0.51792609]
[1625518475973,7.02412625,33820.0,33819.0,0.17279884]
[1625518477922,7.02412625,33820.0,33818.0,0.8640133]
[1625518477923,7.02412625,33820.0,33818.0,0.17298632]
[1625518478022,7.08312625,33820.0,33818.0,0.17298632]
[1625518478274,6.4656971,33819.0,33818.0,0.17298632]
[1625518478373,6.54139667,33819.0,33818.0,0.17298632]
[1625518479576,6.54139667,33819.0,33817.0,0.51910735]
[1625518479877,0.01669968,33818.0,33817.0,0.51910735]
[1625518480077,0.07569968,33818.0,33817.0,0.51910735]
[1625518480178,6.54128975,33818.0,33817.0,0.51910735]
[1625518480727,6.54128975,33818.0,33817.0,0.1731347]
[1625518481178,6.54128975,33818.0,33815.0,0.69255135]
[1625518481278,6.77650975,33818.0,33816.0,0.17320475]
[1625518481477,0.01669977,33817.0,33816.0,0.17320475]
[1625518481578,0.07569977,33817.0,33816.0,0.17320475]
[1625518481778,6.0166584,33817.0,33816.0,0.17320475]
[1625518482128,6.25723384,33817.0,33816.0,0.17320475]
[1625518482229,4.7952,33816.0,33814.0,0.692819]
[1625518482328,4.8542,33816.0,33814.0,0.692819]
[1625518482528,4.38516185,33815.0,33814.0,0.692819]
[1625518482627,4.44416185,33815.0,33814.0,0.692819]
[1625518482832,4.50316185,33815.0,33814.0,0.692819]
[1625518483029,4.50316185,33815.0,33813.0,0.75464749]
[1625518483128,4.50316185,33815.0,33813.0,0.69380881]
[1625518483580,0.01670084,33814.0,33813.0,0.69380881]
[1625518483679,0.01670084,33814.0,33807.0,1.45570539]
[1625518483680,4.26913323,33814.0,33807.0,1.45570539]
[1625518483778,4.32813323,33814.0,33807.0,1.45570539]
[1625518484079,0.37601236,33808.0,33807.0,1.45570539]
[1625518484180,3.32573656,33808.0,33807.0,0.24057544]
[1625518484380,3.34243805,33808.0,33807.0,0.24057544]
[1625518485731,3.28343805,33808.0,33807.0,0.24057544]
[1625518485834,3.26673656,33808.0,33807.0,0.24057544]
[1625518486030,3.26673656,33808.0,33807.0,0.29957544]
[1625518486134,0.64570236,33808.0,33807.0,1.51791335]
[1625518486232,0.37601236,33808.0,33807.0,1.45891335]
[1625518486332,0.39272636,33808.0,33807.0,1.45540883]
[1625518486432,1.61543556,33808.0,33807.0,1.45540883]
[1625518487131,1.61543556,33808.0,33807.0,0.24057544]
[1625518489285,1.59872156,33808.0,33807.0,0.24057544]
[1625518489787,1.61543571,33808.0,33807.0,0.24057544]
[1625518490086,1.59872156,33808.0,33807.0,0.24057544]
[1625518490838,1.61543571,33808.0,33807.0,0.24057544]
[1625518491088,1.59872156,33808.0,33807.0,0.24057544]
[1625518491887,0.37601236,33808.0,33807.0,0.24057544]
[1625518499264,0.39274025,33808.0,33807.0,0.24057544]
[1625518499763,0.37601236,33808.0,33807.0,0.24057544]
[1625518500166,0.37601236,33808.0,33807.0,0.29957544]
[1625518501830,0.43501236,33808.0,33807.0,0.29957544]
[1625518501922,0.4517407,33808.0,33807.0,0.29957544]
[1625518502469,0.3927407,33808.0,33807.0,0.59040544]
[1625518502566,0.01672834,33808.0,33807.0,0.59040544]
[1625518502768,1.22135733,33809.0,33807.0,0.59391003]
[1625518502966,1.22135733,33809.0,33807.0,0.59040544]
[1625518503067,1.22132376,33811.0,33807.0,1.79587684]
[1625518503167,1.22132376,33811.0,33807.0,1.85287684]
[1625518503466,1.22132376,33811.0,33808.0,4.8775]
[1625518503573,0.0167278,33810.0,33808.0,4.93800453]
[1625518503674,0.0167278,33810.0,33808.0,4.88100453]
[1625518503770,0.0757278,33810.0,33808.0,4.9365]
[1625518504017,0.01672764,33809.0,33808.0,4.9365]
[1625518504269,1.22132376,33811.0,33809.0,0.00350447]
[1625518504467,1.22132376,33811.0,33809.0,0.06250447]
[1625518504567,0.01672732,33810.0,33809.0,0.06250447]
[1625518504876,0.01672727,33811.0,33809.0,0.06250447]
[1625518505118,0.01673204,33810.0,33809.0,0.06250447]
[1625518505368,0.01673202,33811.0,33809.0,0.06250447]
[1625518505624,0.01673202,33811.0,33810.0,0.00350442]
[1625518505819,0.01673202,33811.0,33810.0,0.06250442]
[1625518507172,0.07573202,33811.0,33810.0,0.06250442]
[1625518507422,0.01673202,33811.0,33810.0,0.06250442]
[1625518508025,0.01673196,33812.0,33810.0,0.06250442]
[1625518508275,0.01673183,33811.0,33810.0,0.06250442]
[1625518508525,0.01673178,33812.0,33810.0,0.06250442]
[1625518508677,0.01673178,33812.0,33810.0,1.27076341]
[1625518508826,0.01673178,33812.0,33811.0,0.00350449]
[1625518510080,0.07573178,33812.0,33811.0,0.00350449]
[1625518510530,0.07573178,33812.0,33811.0,0.24407993]
[1625518511031,0.01673178,33812.0,33811.0,0.24407993]
[1625518512254,0.01673178,33812.0,33811.0,0.30307993]
[1625518512333,0.01673178,33812.0,33811.0,0.36207993]
[1625518512635,1.22214688,33814.0,33811.0,1.57005167]
[1625518512735,1.22214688,33814.0,33811.0,1.62705167]
[1625518512835,0.01673055,33813.0,33812.0,0.00350419]
[1625518512936,0.01673055,33813.0,33812.0,0.06250419]
[1625518513035,0.01673055,33813.0,33812.0,0.12150419]
[1625518513137,1.22207895,33816.0,33813.0,1.20999009]
[1625518513236,1.22207895,33816.0,33813.0,1.32599009]
[1625518513688,1.22222522,33817.0,33815.0,1.03744864]
[1625518513787,1.22222522,33817.0,33815.0,5.76976864]
[1625518513889,1.22222522,33817.0,33815.0,5.82876864]
[1625518514188,0.01673035,33816.0,33815.0,5.82876864]
[1625518514388,0.01673035,33816.0,33815.0,6.00193764]
[1625518514389,1.0643692,33816.0,33815.0,6.00193764]
[1625518514488,1.0643692,33816.0,33815.0,6.48659265]
[1625518514691,1.04763885,33816.0,33815.0,6.48659265]
[1625518514991,1.04763885,33816.0,33815.0,7.523839]
[1625518517446,1.04763885,33816.0,33815.0,8.9056032]
[1625518517644,1.04763885,33816.0,33815.0,8.90209907]
[1625518518596,1.04763885,33816.0,33815.0,7.52033487]
[1625518519246,1.04763885,33816.0,33815.0,7.52383884]
[1625518519498,1.04792292,33817.0,33815.0,8.90135162]
[1625518519797,1.04792292,33817.0,33816.0,2.24366991]
[1625518520000,1.04792292,33817.0,33816.0,2.30266991]
[1625518522353,1.04767264,33819.0,33816.0,3.68234795]
[1625518522452,1.04767264,33819.0,33816.0,3.74285174]
[1625518522655,1.04767264,33819.0,33818.0,0.24057544]
[1625518522854,1.04767264,33819.0,33818.0,2.54168845]
[1625518523255,1.04761026,33821.0,33818.0,3.92163284]
[1625518523354,1.04761026,33821.0,33818.0,3.97863284]
[1625518523806,1.04761026,33821.0,33820.0,2.24237382]
[1625518523906,1.04761026,33821.0,33820.0,6.95387382]
[1625518524006,1.04761026,33821.0,33820.0,7.01287382]
[1625518524709,1.04761026,33821.0,33820.0,7.25344926]
[1625518526716,1.04695038,33822.0,33820.0,7.25344926]
[1625518527117,1.04695038,33822.0,33821.0,1.09277967]
[1625518528721,0.24057544,33823.0,33821.0,1.09277967]
[1625518529271,0.24057544,33823.0,33822.0,1.03519171]
[1625518529372,0.24057544,33823.0,33821.0,0.116]
[1625518529473,0.24057544,33823.0,33821.0,0.059]
[1625518529622,1.28719864,33823.0,33821.0,0.059]
[1625518530224,1.28719864,33823.0,33821.0,1.09431184]
[1625518530626,1.28719864,33823.0,33822.0,1.03525264]
[1625518530726,1.28719864,33823.0,33822.0,1.34984264]
[1625518532077,1.28719864,33823.0,33822.0,0.31459]
[1625518532529,1.28719864,33823.0,33822.0,1.34864607]
[1625518533330,1.28719864,33823.0,33822.0,0.31459]
[1625518533932,0.24057544,33823.0,33822.0,1.34850475]
[1625518534383,0.24057544,33823.0,33822.0,0.31459]
[1625518534883,0.24057544,33823.0,33822.0,1.34854647]
[1625518535437,0.24057544,33823.0,33822.0,0.31459]
[1625518536038,0.29957544,33823.0,33822.0,0.31459]
[1625518536990,0.24057544,33823.0,33822.0,0.31459]
[1625518539848,0.25730514,33823.0,33822.0,0.31459]
[1625518540650,0.24057544,33823.0,33822.0,0.31459]
[1625518541403,0.257305,33823.0,33822.0,0.31459]
[1625518541755,0.257305,33823.0,33822.0,0.31809352]
[1625518542253,0.257305,33823.0,33822.0,0.31459]
[1625518542401,4.131405,33823.0,33822.0,0.31459]
[1625518543001,4.82821546,33823.0,33822.0,0.31459]
[1625518543601,4.88721546,33823.0,33822.0,0.3180936]
[1625518543702,4.82821546,33823.0,33822.0,0.3180936]
[1625518544954,4.131405,33823.0,33822.0,1.00541343]
[1625518545307,4.82822414,33823.0,33822.0,0.3180936]
[1625518546508,4.88722414,33823.0,33822.0,0.3180936]
[1625518546812,4.82822414,33823.0,33822.0,0.3180936]
[1625518549070,4.82822414,33823.0,33822.0,0.0625036]
[1625518552121,4.82822414,33823.0,33822.0,0.7498587]
[1625518552222,4.82822414,33823.0,33822.0,1.0668187]
[1625518552623,4.131405,33823.0,33822.0,1.0668187]
[1625518553675,4.82855506,33823.0,33822.0,1.0668187]
[1625518556632,4.82855506,33823.0,33822.0,2.10109476]
[1625518556783,0.95445506,33823.0,33822.0,2.10109476]
[1625518557086,0.95445506,33823.0,33822.0,2.16009476]
[1625518557985,0.95445506,33823.0,33822.0,2.10109476]
[1625518558085,0.95445506,33823.0,33822.0,2.16009476]
[1625518558188,0.95445506,33823.0,33822.0,2.10109476]
[1625518558388,0.95445506,33823.0,33822.0,2.16009476]
[1625518558487,0.95445506,33823.0,33822.0,2.10109476]
[1625518560642,2.00102388,33823.0,33822.0,2.10109476]
[1625518561144,0.95445506,33823.0,33822.0,2.10109476]
[1625518561645,2.00101222,33823.0,33822.0,2.10109476]
[1625518563352,0.95445506,33823.0,33822.0,3.30712758]
[1625518563550,0.95445506,33823.0,33822.0,3.36612758]
[1625518563800,0.95445506,33823.0,33822.0,3.30712758]
[1625518563952,0.95445506,33823.0,33822.0,3.36612758]
[1625518564053,0.95445506,33823.0,33822.0,3.30712758]
[1625518564252,0.95445506,33823.0,33822.0,3.36612758]
[1625518564352,0.95445506,33823.0,33822.0,3.30712758]
[1625518564602,0.95445506,33823.0,33822.0,4.6863118]
[1625518564804,1.26289506,33823.0,33822.0,4.6863118]
[1625518565003,1.26289506,33823.0,33822.0,4.3693518]
[1625518565305,5.17489506,33823.0,33822.0,4.3693518]
[1625518565407,6.22228241,33823.0,33822.0,2.99016758]
[1625518565804,7.44426332,33823.0,33822.0,1.78413476]
[1625518566204,7.44426332,33823.0,33822.0,0.7498587]
[1625518566554,8.84120613,33823.0,33822.0,0.7498587]
[1625518567004,7.44426332,33823.0,33822.0,1.78474124]
[1625518567507,7.44426332,33823.0,33822.0,0.7498587]
[1625518567508,8.8412979,33823.0,33822.0,0.7498587]
[1625518568305,8.8412979,33823.0,33822.0,1.78563597]
[1625518572266,8.8412979,33823.0,33822.0,1.72663597]
[1625518572766,9.36600088,33823.0,33822.0,2.24375583]
[1625518573719,9.60657632,33823.0,33822.0,2.24375583]
[1625518573818,11.2393969,33823.0,33822.0,1.20797856]
[1625518573920,11.2393969,33823.0,33822.0,1.20447496]
[1625518574220,11.2393969,33823.0,33822.0,0.51711986]
[1625518574521,11.27443722,33823.0,33822.0,0.51711986]
[1625518574672,11.27443722,33823.0,33822.0,0.08655309]
[1625518575075,11.27443722,33823.0,33821.0,0.08648645]
[1625518575425,6.47080617,33822.0,33821.0,0.08648645]
[1625518575523,6.54652717,33822.0,33821.0,0.08648645]
[1625518575824,6.54652717,33822.0,33820.0,0.08645805]
[1625518576327,6.48867718,33821.0,33819.0,0.08650986]
[1625518576526,6.54767718,33821.0,33819.0,0.08650986]
[1625518576626,0.01672171,33820.0,33819.0,0.08650986]
[1625518576728,6.54774582,33820.0,33819.0,0.08650986]
[1625518579335,6.60674582,33820.0,33819.0,0.08650986]
[1625518579434,6.54774582,33820.0,33819.0,0.08650986]
[1625518580946,6.54774582,33820.0,33818.0,0.08646879]
[1625518581392,0.0167214,33819.0,33818.0,0.08646879]
[1625518581492,6.48310877,33819.0,33818.0,0.08646879]
[1625518581591,6.54210877,33819.0,33818.0,0.08646879]
[1625518581941,6.78268421,33819.0,33818.0,0.08646879]
[1625518583046,11.44678421,33819.0,33818.0,0.08646879]
[1625518586199,11.20620877,33819.0,33818.0,0.08646879]
[1625518586500,11.20620877,33819.0,33817.0,0.08655283]
[1625518586754,0.48115088,33818.0,33817.0,0.08655283]
[1625518586852,0.54015088,33818.0,33817.0,0.08655283]
[1625518586951,0.55687146,33818.0,33817.0,0.08655283]
[1625518587052,5.44806298,33818.0,33817.0,0.08655283]
[1625518587825,5.38906298,33818.0,33817.0,0.08655283]
[1625518587943,5.14848754,33818.0,33817.0,0.14555283]
[1625518588019,4.89119152,33818.0,33817.0,0.14555283]
[1625518588328,4.89119152,33818.0,33817.0,0.20805657]
[1625518588407,4.89119152,33818.0,33817.0,1.33455532]
[1625518588513,4.89119152,33818.0,33817.0,5.63265532]
[1625518588731,4.89119152,33818.0,33817.0,6.1138062]
[1625518588812,4.89119152,33818.0,33817.0,6.12490645]
[1625518588927,0.0874586,33819.0,33817.0,11.31161395]
[1625518589030,0.0874586,33819.0,33817.0,11.60350395]
[1625518589213,0.0874586,33819.0,33818.0,0.0111018]
[1625518589425,0.0874586,33819.0,33818.0,0.13260496]
[1625518589512,0.08745885,33820.0,33818.0,6.53026435]
[1625518589610,0.08745885,33820.0,33819.0,0.01110119]
[1625518589711,0.08745885,33820.0,33819.0,0.07010119]
[1625518589811,0.08745885,33820.0,33819.0,0.059]
[1625518589912,0.08745885,33820.0,33819.0,0.12150316]
[1625518590116,0.08745698,33821.0,33819.0,6.51815576]
[1625518590415,0.08745698,33821.0,33820.0,0.00350326]
[1625518590515,0.08745698,33821.0,33820.0,0.12150326]
[1625518590720,0.52385915,33821.0,33820.0,5.20459121]
[1625518591523,0.08745224,33821.0,33820.0,5.20459121]
[1625518595983,0.08745224,33821.0,33820.0,5.14208795]
[1625518596234,0.52378063,33821.0,33820.0,5.14208795]
[1625518596331,0.52378063,33821.0,33820.0,5.20108795]
[1625518596583,1.22211751,33821.0,33820.0,5.20108795]
[1625518598436,0.52378063,33821.0,33820.0,5.20108795]
[1625518600743,1.22209822,33821.0,33820.0,5.20108795]
[1625518602700,1.22209822,33821.0,33820.0,5.50401795]
[1625518603350,0.87302329,33821.0,33820.0,5.50401795]
[1625518604400,0.34924266,33821.0,33820.0,5.50401795]
[1625518604904,0.43667954,33821.0,33820.0,5.50401795]
[1625518605304,0.08743688,33821.0,33820.0,5.50401795]
[1625518605655,0.87296646,33822.0,33820.0,5.50401795]
[1625518605754,0.08743677,33821.0,33820.0,5.50752109]
[1625518606007,0.08743677,33821.0,33820.0,5.50401795]
[1625518608262,0.4366284,33821.0,33820.0,5.50401795]
[1625518608762,0.08743677,33821.0,33820.0,5.50401795]
[1625518609264,0.43663783,33821.0,33820.0,5.50401795]
[1625518611870,0.43663783,33821.0,33820.0,5.50752107]
[1625518613173,0.34920106,33821.0,33820.0,5.50752107]
[1625518613477,0.34920106,33821.0,33820.0,5.20459107]
[1625518613787,0.34920106,33821.0,33820.0,5.14559107]
[1625518613980,0.34920106,33821.0,33820.0,5.14208795]
[1625518614477,2.26903828,33821.0,33820.0,3.75851295]
[1625518615027,2.32803828,33821.0,33820.0,2.48888482]
[1625518615325,2.32803828,33821.0,33820.0,2.24830938]
[1625518615429,2.80918916,33821.0,33820.0,2.24830938]
[1625518615527,4.04772709,33821.0,33820.0,2.24830938]
[1625518615728,4.10672709,33821.0,33820.0,2.24830938]
[1625518615981,5.50326067,33821.0,33819.0,0.43351671]
[1625518616294,0.01672864,33820.0,33819.0,0.43351671]
[1625518616378,0.35204864,33820.0,33819.0,0.43351671]
[1625518616481,0.35204864,33820.0,33819.0,0.08670334]
[1625518616482,5.29894148,33820.0,33819.0,0.08670334]
[1625518616778,5.29894148,33820.0,33818.0,0.08673458]
[1625518617079,0.01672909,33819.0,33818.0,0.08673458]
[1625518617179,0.07572909,33819.0,33818.0,0.08673458]
[1625518617282,4.96324108,33819.0,33818.0,0.08673458]
[1625518618332,6.59308752,33819.0,33817.0,0.08677066]
[1625518618442,6.59308752,33819.0,33816.0,0.16455329]
[1625518618658,7.09308752,33819.0,33816.0,0.16455329]
[1625518618733,0.01673054,33818.0,33816.0,0.16455329]
[1625518618834,0.07573054,33818.0,33815.0,0.87907805]
[1625518618934,0.13473054,33818.0,33815.0,0.87907805]
[1625518619033,6.4585438,33817.0,33813.0,0.52136]
[1625518619133,6.5175438,33817.0,33813.0,0.52136]
[1625518619234,0.01673131,33816.0,33813.0,0.52136]
[1625518619334,0.01673131,33816.0,33809.0,1.21650667]
[1625518619335,2.26833821,33814.0,33809.0,0.52163443]
[1625518619435,0.72172632,33810.0,33809.0,0.52163443]
[1625518619635,0.78072632,33810.0,33809.0,0.52163443]
[1625518619736,4.98522393,33810.0,33808.0,0.52175537]
[1625518619935,5.04422393,33810.0,33808.0,0.52175537]
[1625518620137,2.79182717,33809.0,33808.0,0.52175537]
[1625518620335,2.90982717,33809.0,33808.0,0.52175537]
[1625518620535,2.92655903,33809.0,33808.0,0.52175537]
[1625518620686,4.32238622,33809.0,33807.0,0.52185474]
[1625518621035,4.30565436,33809.0,33807.0,0.52185474]
[1625518621185,4.18765588,33808.0,33807.0,0.52185474]
[1625518621286,4.26338778,33808.0,33807.0,0.52185474]
[1625518621386,4.32238778,33808.0,33807.0,0.52185474]
[1625518621837,4.30565588,33808.0,33807.0,0.52185474]
[1625518622089,2.90982874,33808.0,33807.0,0.52185474]
[1625518622188,2.90982874,33808.0,33806.0,0.52148946]
[1625518622640,2.79018103,33807.0,33806.0,0.52148946]
[1625518622741,2.84918103,33807.0,33806.0,0.52148946]
[1625518624596,1.62853131,33807.0,33805.0,0.76188316]
[1625518624998,0.059,33807.0,33806.0,0.5213495]
[1625518625299,1.62773427,33807.0,33806.0,0.5213495]
[1625518626698,0.58196951,33807.0,33806.0,0.5213495]
[1625518627350,0.52296951,33807.0,33806.0,0.5213495]
[1625518627451,0.52296951,33807.0,33806.0,0.76192494]
[1625518628050,0.52296951,33807.0,33806.0,0.82092494]
[1625518628153,0.52296951,33807.0,33806.0,0.76192494]
[1625518628250,0.52296951,33807.0,33806.0,0.82092494]
[1625518628351,0.5226466,33808.0,33806.0,1.86256277]
[1625518628652,0.5226466,33808.0,33807.0,0.52065376]
[1625518628752,0.5226466,33808.0,33807.0,0.57965376]
[1625518629052,0.52257426,33809.0,33807.0,1.62155697]
[1625518629504,1.48487425,33810.0,33808.0,1.56382697]
[1625518629603,1.48487425,33810.0,33808.0,1.62282697]
[1625518629955,0.96230176,33810.0,33809.0,1.56327709]
[1625518630055,0.96230176,33810.0,33809.0,1.62227709]
[1625518630903,0.96230176,33810.0,33809.0,1.56327709]
[1625518631454,0.72172632,33810.0,33809.0,1.56327709]
[1625518632557,0.89601835,33810.0,33809.0,1.56327709]
[1625518633661,1.24421493,33810.0,33809.0,0.52109236]
[1625518633959,1.24421493,33810.0,33809.0,0.17378809]
[1625518635062,1.30321493,33810.0,33809.0,0.17378809]
[1625518639671,1.24421493,33810.0,33809.0,0.17378809]
[1625518640070,0.72172632,33810.0,33809.0,0.17378809]
[1625518640323,1.24307952,33810.0,33809.0,0.17378809]
[1625518643532,0.89541973,33810.0,33809.0,0.52206669]
[1625518643629,0.95441973,33810.0,33809.0,0.52206669]
[1625518643828,1.30119352,33810.0,33809.0,0.17400281]
[1625518644983,1.3179238,33810.0,33809.0,0.17750728]
[1625518645485,1.3179238,33810.0,33809.0,0.00350447]
[1625518645785,1.3179238,33810.0,33809.0,0.17749133]
[1625518646087,1.2589238,33810.0,33809.0,0.17749133]
[1625518646845,1.2589238,33810.0,33809.0,0.00350447]
[1625518647335,0.91210572,33810.0,33809.0,0.17747199]
[1625518648192,0.97110572,33810.0,33809.0,0.17747199]
[1625518648945,1.3183056,33810.0,33809.0,0.17747199]
[1625518657512,2.36302933,33810.0,33809.0,0.17747199]